fUSD/lending_fUSD_20260401
["ID","MTS","AMOUNT","RATE_DAILY","PERIOD"]
[419263524,1775075460747,-500.0,0.00029887,30]
[419263525,1775075460756,-500.0,0.00029887,120]
[419263526,1775075460765,-500.0,0.00029887,120]
[419263527,1775075460774,-500.0,0.00029887,120]
[419263528,1775075460783,-500.0,0.00029887,120]
[419263529,1775075460792,-500.0,0.00029887,10]
[419263530,1775075460802,-500.0,0.00029887,45]
[419263531,1775075460811,-150.0,0.00029971,2]
[419263532,1775075460821,-151.0,0.00029996,7]
[419263533,1775075460830,-112472.56791734,0.00029999,120]
[419263534,1775075460839,-81366.00240209,0.00029999,120]
[419263535,1775075460848,-363.51560483,0.0003,30]
[419263536,1775075460857,-1134.56811026,0.0003,120]
[419263537,1775075460867,-226.64078971,0.0003,30]
[419263538,1775075460876,-300.0,0.0003,3]
[419263539,1775075460885,-500.0,0.0003,2]
[419263540,1775075460895,-1000.0,0.0003,120]
[419263541,1775075460904,-150.0,0.0003,2]
[419263542,1775075460913,-200.000001,0.0003,2]
[419263543,1775075460923,-1000.0,0.0003,120]
[419263544,1775075460932,-500.0,0.0003,2]
[419263545,1775075460942,-5665.32646623,0.0003,2]
[419263546,1775075460951,-5665.32646623,0.0003,2]
[419263547,1775075460960,-14550.30558001,0.0003,2]
[419263548,1775075460969,-160.0,0.0003,120]
[419263549,1775075460978,-181.0,0.0003,120]
[419263550,1775075460988,-12574.83452425,0.0003,3]
[419263551,1775075460997,-160.0,0.0003,120]
[419263552,1775075461006,-160.0,0.0003,120]
[419263553,1775075461016,-1014.48,0.0003,30]
[419263554,1775075461025,-150.0,0.0003,30]
[419263555,1775075461034,-1045.0,0.00030099,2]
[419263556,1775075461043,-2469.0,0.00030099,2]
[419263557,1775075461052,-150.0,0.00030136,20]
[419263558,1775075461061,-164.36,0.00030137,2]
[419263559,1775075461070,-189.0,0.00030137,2]
[419263560,1775075461079,-182.688209,0.00030137,7]
[419263561,1775075461088,-182.688209,0.00030137,7]
[419263562,1775075461097,-182.688209,0.00030137,7]
[419263563,1775075461106,-182.688209,0.00030137,7]
[419263564,1775075461115,-182.688209,0.00030137,7]
[419263565,1775075461124,-182.688209,0.00030137,7]
[419263566,1775075461133,-182.688209,0.00030137,7]
[419263567,1775075461142,-182.688209,0.00030137,7]
[419263568,1775075461151,-182.688209,0.00030137,7]
[419263569,1775075461160,-182.688209,0.00030137,7]
[419263570,1775075461170,-182.688209,0.00030137,7]
[419263571,1775075461179,-182.688209,0.00030137,7]
[419263572,1775075461189,-182.688209,0.00030137,7]
[419263573,1775075461199,-182.688209,0.00030137,7]
[419263574,1775075461207,-182.688209,0.00030137,7]
[419263575,1775075461216,-182.688209,0.00030137,7]
[419263576,1775075461226,-182.688209,0.00030137,7]
[419263577,1775075461235,-182.688209,0.00030137,7]
[419263578,1775075461244,-182.688209,0.00030137,7]
[419263579,1775075461253,-1000.0,0.00030137,120]
[419263580,1775075461263,-500.0,0.00030137,60]
[419263581,1775075461272,-250.0,0.00030154,15]
[419263582,1775075461281,-288.83,0.00030286,60]
[419263583,1775075461290,-500.0,0.000303,120]
[419263584,1775075461299,-500.0,0.000303,120]
[419263585,1775075461309,-500.0,0.000303,120]
[419263586,1775075461318,-500.0,0.000303,120]
[419263587,1775075461328,-500.0,0.000303,30]
[419263588,1775075461337,-500.0,0.000303,120]
[419263589,1775075461345,-567.75072671,0.000303,120]
[419263590,1775075461354,-500.0,0.000303,120]
[419263591,1775075461363,-500.0,0.000303,120]
[419263592,1775075461372,-500.0,0.000303,10]
[419263593,1775075461381,-500.0,0.000303,45]
[419263594,1775075461390,-1014.48,0.00030312,30]
[419263595,1775075461399,-433.72,0.00030411,120]
[419263596,1775075461411,-1014.48,0.00030625,30]
[419263597,1775075461420,-189.23,0.00030655,30]
[419263598,1775075461429,-189.23,0.00030655,30]
[419263599,1775075461438,-189.23,0.00030655,30]
[419263600,1775075461447,-6016.0,0.00030684,2]
[419263601,1775075461456,-224.70124058,0.00030685,2]
[419263602,1775075461465,-157.48396901,0.00030771,71]
[419263603,1775075461474,-6052.7096,0.000308,77]
[419263604,1775075461483,-206.50554733,0.00030813,120]
[419263605,1775075461493,-243.0,0.0003084,30]
[419263606,1775075461501,-279.36,0.00030881,120]
[419263607,1775075461510,-160.0,0.000309,120]
[419263608,1775075461519,-1263.0,0.00030904,2]
[419263609,1775075461529,-1216.0,0.00030904,2]
[419263610,1775075461538,-925.0,0.00030904,2]
[419263611,1775075461547,-1014.48,0.00030937,30]
[419263612,1775075461557,-152.0,0.00030944,3]
[419263613,1775075461566,-510.0,0.00030948,17]
[419263614,1775075461575,-156.0,0.00031,120]
[419263615,1775075461584,-160.0,0.00031,31]
[419263616,1775075461594,-341.90321541,0.00031,120]
[419263617,1775075461603,-214.3,0.00031,4]
[419263618,1775075461612,-500.0,0.00031074,120]
[419263619,1775075461621,-5000.0,0.0003117,7]
[419263620,1775075461630,-189.23,0.00031203,30]
[419263621,1775075461639,-189.23,0.00031203,30]
[419263622,1775075461648,-189.23,0.00031203,30]
[419263623,1775075461658,-1014.48,0.0003125,30]
[419263624,1775075461666,-161.0,0.00031297,3]
[419263625,1775075461677,-700.0,0.000314,120]
[419263626,1775075461686,-869.14,0.00031451,30]
[419263627,1775075461695,-150.0,0.0003147,2]
[419263628,1775075461704,-151.0,0.00031497,7]
[419263629,1775075461713,-500.0,0.00031507,60]
[419263630,1775075461723,-1014.48,0.00031563,30]
[419263631,1775075461732,-618.31475472,0.00031717,2]
[419263632,1775075461742,-1032.7,0.00031746,2]
[419263633,1775075461751,-151.0,0.0003175,5]
[419263634,1775075461760,-189.23,0.00031751,30]
[419263635,1775075461769,-189.23,0.00031751,30]
[419263636,1775075461778,-189.23,0.00031751,30]
[419263637,1775075461787,-261.07974608,0.00031858,120]
[419263638,1775075461796,-1014.48,0.00031875,30]
[419263639,1775075461806,-151.0,0.00031997,7]
[419263640,1775075461815,-151.0,0.00031997,7]
[419263641,1775075461824,-463.75395579,0.00032,120]
[419263642,1775075461833,-184.63982661,0.00032,120]
[419263643,1775075461843,-393.49142579,0.00032,120]
[419263644,1775075461852,-342.65510076,0.00032,120]
[419263645,1775075461862,-1957.82232135,0.00032,120]
[419263646,1775075461871,-647.06184253,0.00032,120]
[419263647,1775075461881,-281.59168138,0.00032,120]
[419263648,1775075461890,-223.9430648,0.00032,120]
[419263649,1775075461900,-179.7765907,0.00032,120]
[419263650,1775075461909,-156.0,0.00032,120]
[419263651,1775075461918,-89571.55,0.00032,20]
[419263652,1775075461927,-2553.79,0.00032,120]
[419263653,1775075461937,-1000.0,0.00032,120]
[419263654,1775075461948,-100000.0,0.00032,60]
[419263655,1775075461957,-100000.0,0.00032,60]
[419263656,1775075461967,-100000.0,0.00032,60]
[419263657,1775075461976,-100000.0,0.00032,60]
[419263658,1775075461985,-377.62,0.00032,120]
[419263659,1775075461994,-405.01,0.00032,120]
[419263660,1775075462003,-1739.22347253,0.00032,2]
[419263661,1775075462012,-152.0,0.00032164,4]
[419263662,1775075462022,-1014.48,0.00032187,120]
[419263663,1775075462031,-198.43339931,0.000322,30]
[419263664,1775075462040,-7744.7442,0.000322,82]
[419263665,1775075462049,-825.0,0.00032208,60]
[419263666,1775075462058,-363.51560483,0.00032222,30]
[419263667,1775075462068,-500.0,0.00032297,120]
[419263668,1775075462077,-500.0,0.00032297,30]
[419263669,1775075462086,-500.0,0.00032297,120]
[419263670,1775075462095,-500.0,0.00032297,10]
[419263671,1775075462105,-500.0,0.00032297,120]
[419263672,1775075462114,-500.0,0.00032297,45]
[419263673,1775075462124,-500.0,0.00032297,120]
[419263674,1775075462134,-500.0,0.00032297,10]
[419263675,1775075462143,-500.0,0.00032297,120]
[419263676,1775075462153,-500.0,0.00032297,30]
[419263677,1775075462162,-361.65497649,0.00032329,7]
[419263678,1775075462173,-500.0,0.00032339,120]
[419263679,1775075462183,-1014.48,0.000325,120]
[419263680,1775075462192,-1096.6,0.0003259,2]
[419263681,1775075462201,-3000.0,0.00032632,14]
[419263682,1775075462210,-152.0,0.00032704,2]
[419263683,1775075462220,-151.0,0.0003275,5]
[419263684,1775075462229,-2215.66368021,0.000328,120]
[419263685,1775075462238,-2500.0,0.000328,60]
[419263686,1775075462247,-1014.48,0.00032812,120]
[419263687,1775075462256,-243.0,0.0003286,30]
[419263688,1775075462266,-151.0,0.00032873,14]
[419263689,1775075462275,-385.49196168,0.00032876,2]
[419263690,1775075462284,-451.20328318,0.00032876,2]
[419263691,1775075462293,-500.0,0.00032876,2]
[419263692,1775075462303,-500.0,0.00032876,2]
[419263693,1775075462311,-532.25173938,0.00032876,2]
[419263694,1775075462321,-467.08972312,0.00032876,2]
[419263695,1775075462330,-500.0,0.00032876,2]
[419263696,1775075462339,-500.0,0.00032876,2]
[419263697,1775075462348,-391.6421301,0.00032876,2]
[419263698,1775075462357,-500.0,0.00032876,2]
[419263699,1775075462367,-500.0,0.00032876,2]
[419263700,1775075462376,-251.41774854,0.00032876,2]
[419263701,1775075462386,-500.0,0.00032876,2]
[419263702,1775075462396,-500.0,0.00032876,2]
[419263703,1775075462405,-500.0,0.00032876,2]
[419263704,1775075462414,-500.0,0.00032876,2]
[419263705,1775075462424,-500.0,0.00032876,2]
[419263706,1775075462434,-500.0,0.00032876,2]
[419263707,1775075462443,-500.0,0.00032876,2]
[419263708,1775075462452,-500.0,0.00032876,2]
[419263709,1775075462462,-272.81168537,0.00032876,2]
[419263710,1775075462472,-500.0,0.00032876,2]
[419263711,1775075462482,-500.0,0.00032876,2]
[419263712,1775075462491,-500.0,0.00032876,2]
[419263713,1775075462501,-500.0,0.00032876,2]
[419263714,1775075462511,-500.0,0.00032876,2]
[419263715,1775075462520,-500.0,0.00032876,2]
[419263716,1775075462530,-590.46692258,0.00032876,2]
[419263717,1775075462539,-544.76298955,0.00032876,2]
[419263718,1775075462549,-275.19035575,0.00032877,10]
[419263719,1775075462559,-866.0,0.00032877,15]
[419263720,1775075462569,-189.0,0.00032877,2]
[419263721,1775075462578,-512.198996,0.00032877,7]
[419263722,1775075462587,-512.198996,0.00032877,7]
[419263723,1775075462597,-512.198996,0.00032877,7]
[419263724,1775075462606,-512.198996,0.00032877,7]
[419263725,1775075462615,-512.198996,0.00032877,7]
[419263726,1775075462625,-512.198996,0.00032877,7]
[419263727,1775075462635,-512.198996,0.00032877,7]
[419263728,1775075462644,-512.198996,0.00032877,7]
[419263729,1775075462654,-512.198996,0.00032877,7]
[419263730,1775075462663,-512.198996,0.00032877,7]
[419263731,1775075462673,-512.198996,0.00032877,7]
[419263732,1775075462682,-512.198996,0.00032877,7]
[419263733,1775075462692,-512.198996,0.00032877,7]
[419263734,1775075462702,-512.198996,0.00032877,7]
[419263735,1775075462711,-512.198996,0.00032877,7]
[419263736,1775075462721,-512.198996,0.00032877,7]
[419263737,1775075462730,-512.198996,0.00032877,7]
[419263738,1775075462739,-512.198996,0.00032877,7]
[419263739,1775075462749,-512.198996,0.00032877,7]
[419263740,1775075462758,-512.198992,0.00032877,7]
[419263741,1775075462768,-511.966398,0.00032877,7]
[419263742,1775075462899,-511.966398,0.00032877,7]
[419263743,1775075462912,-511.966398,0.00032877,7]
[419263744,1775075462922,-511.966398,0.00032877,7]
[419263745,1775075462931,-511.966398,0.00032877,7]
[419263746,1775075462942,-511.966398,0.00032877,7]
[419263747,1775075462952,-511.966398,0.00032877,7]
[419263748,1775075462962,-511.966398,0.00032877,7]
[419263749,1775075462971,-511.966398,0.00032877,7]
[419263750,1775075462981,-511.966398,0.00032877,7]
[419263751,1775075462991,-511.966398,0.00032877,7]
[419263752,1775075463000,-511.966398,0.00032877,7]
[419263753,1775075463010,-511.966398,0.00032877,7]
[419263754,1775075463019,-511.966398,0.00032877,7]
[419263755,1775075463029,-511.966398,0.00032877,7]
[419263756,1775075463038,-511.966398,0.00032877,7]
[419263757,1775075463048,-511.966398,0.00032877,7]
[419263758,1775075463057,-511.966398,0.00032877,7]
[419263759,1775075463066,-511.966398,0.00032877,7]
[419263760,1775075463076,-511.966388,0.00032877,7]
[419263761,1775075463086,-783.803758,0.00032877,7]
[419263762,1775075463095,-783.803758,0.00032877,7]
[419263763,1775075463104,-783.803758,0.00032877,7]
[419263764,1775075463114,-783.803758,0.00032877,7]
[419263765,1775075463124,-783.803758,0.00032877,7]
[419263766,1775075463133,-783.803758,0.00032877,7]
[419263767,1775075463143,-783.803758,0.00032877,7]
[419263768,1775075463153,-783.803758,0.00032877,7]
[419263769,1775075463162,-783.803758,0.00032877,7]
[419263770,1775075463172,-783.803758,0.00032877,7]
[419263771,1775075463181,-783.803758,0.00032877,7]
[419263772,1775075463191,-783.803758,0.00032877,7]
[419263773,1775075463200,-783.803758,0.00032877,7]
[419263774,1775075463210,-783.803758,0.00032877,7]
[419263775,1775075463219,-783.803758,0.00032877,7]
[419263776,1775075463229,-783.803758,0.00032877,7]
[419263777,1775075463238,-783.803758,0.00032877,7]
[419263778,1775075463248,-783.803758,0.00032877,7]
[419263779,1775075463257,-783.803758,0.00032877,7]
[419263780,1775075463267,-783.803761,0.00032877,7]
[419263781,1775075463277,-1000.0,0.00032877,120]
[419263782,1775075463286,-500.0,0.00032877,120]
[419263783,1775075463296,-250.0,0.00032877,120]
[419263784,1775075463306,-500.0,0.00032877,60]
[419263785,1775075463315,-500.0,0.00032877,30]
[419263786,1775075463324,-391.70821832,0.00032877,2]
[419263787,1775075463334,-150.0,0.00032877,5]
[419263788,1775075463343,-500.0,0.00032877,2]
[419263789,1775075463352,-500.0,0.00032877,2]
[419263790,1775075463362,-250.0,0.00032877,30]
[419263791,1775075463372,-250.0,0.00032877,30]
[419263792,1775075463381,-250.0,0.00032877,30]
[419263793,1775075463391,-250.0,0.00032877,30]
[419263794,1775075463400,-250.0,0.00032877,30]
[419263795,1775075463410,-250.0,0.00032877,30]
[419263796,1775075463419,-250.0,0.00032877,30]
[419263797,1775075463429,-250.0,0.00032877,30]
[419263798,1775075463438,-250.0,0.00032877,30]
[419263799,1775075463447,-250.0,0.00032877,30]
[419263800,1775075463457,-250.0,0.00032877,30]
[419263801,1775075463466,-253.83276681,0.00032877,30]
[419263802,1775075463476,-500.0,0.00032958,120]
[419263803,1775075463486,-500.0,0.00032958,30]
[419263804,1775075463496,-500.0,0.00032958,120]
[419263805,1775075463506,-500.0,0.00032958,10]
[419263806,1775075463516,-500.0,0.00032958,120]
[419263807,1775075463526,-500.0,0.00032958,45]
[419263808,1775075463536,-500.0,0.00032958,120]
[419263809,1775075463545,-500.0,0.00032958,10]
[419263810,1775075463555,-500.0,0.00032958,120]
[419263811,1775075463565,-500.0,0.00032958,30]
[419263812,1775075463575,-400.0,0.0003297,2]
[419263813,1775075463584,-400.0,0.0003297,2]
[419263814,1775075463594,-400.0,0.0003297,2]
[419263815,1775075463603,-400.0,0.0003297,2]
[419263816,1775075463613,-162.08277964,0.00032997,14]
[419263817,1775075463623,-174.44447406,0.00033,60]
[419263818,1775075463633,-219.59057452,0.00033,120]
[419263819,1775075463643,-473.80260708,0.00033,30]
[419263820,1775075463652,-1506.05218536,0.00033,120]
[419263821,1775075463662,-463.75395579,0.00033,120]
[419263822,1775075463672,-184.63982661,0.00033,120]
[419263823,1775075463682,-393.49142579,0.00033,120]
[419263824,1775075463692,-342.65510076,0.00033,120]
[419263825,1775075463702,-1957.82232135,0.00033,120]
[419263826,1775075463712,-647.06184253,0.00033,120]
[419263827,1775075463721,-281.59168138,0.00033,120]
[419263828,1775075463731,-156.0,0.00033,120]
[419263829,1775075463741,-999.5299672,0.00033,2]
[419263830,1775075463750,-847.122,0.00033,120]
[419263831,1775075463760,-35822.84,0.00033,2]
[419263832,1775075463770,-47486.68451113,0.00033,2]
[419263833,1775075463780,-566.297681,0.00033,14]
[419263834,1775075463791,-10029.7504142,0.00033,2]
[419263835,1775075463800,-150.0,0.00033043,2]
[419263836,1775075463811,-1045.0,0.00033099,2]
[419263837,1775075463822,-2469.0,0.00033099,2]
[419263838,1775075463833,-189.23,0.00033121,30]
[419263839,1775075463844,-189.23,0.00033121,30]
[419263840,1775075463854,-189.23,0.00033121,30]
[419263841,1775075463864,-1014.48,0.00033125,120]
[419263842,1775075463875,-500.0,0.00033199,120]
[419263843,1775075463884,-500.0,0.00033199,120]
[419263844,1775075463895,-500.0,0.00033199,120]
[419263845,1775075463904,-500.0,0.00033199,120]
[419263846,1775075463914,-500.0,0.00033199,120]
[419263847,1775075463924,-445.36727502,0.00033199,120]
[419263848,1775075463934,-500.0,0.00033199,10]
[419263849,1775075463943,-500.0,0.00033199,120]
[419263850,1775075463953,-495.0,0.00033199,120]
[419263851,1775075463963,-500.0,0.00033199,30]
[419263852,1775075463973,-152.0,0.00033383,5]
[419263853,1775075463982,-1096.6,0.00033434,2]
[419263854,1775075463991,-1014.48,0.00033438,120]
[419263855,1775075464003,-1223.21238259,0.000335,2]
[419263856,1775075464012,-9909.7869,0.000336,87]
[419263857,1775075464023,-500.0,0.00033604,120]
[419263858,1775075464033,-372.49,0.00033606,120]
[419263859,1775075464043,-186.0,0.00033638,2]
[419263860,1775075464052,-6016.0,0.00033684,2]
[419263861,1775075464062,-418.23,0.00033687,30]
[419263862,1775075464072,-200.0,0.00033699,5]
[419263863,1775075464081,-1014.48,0.0003375,120]
[419263864,1775075464091,-151.0,0.0003375,5]
[419263865,1775075464100,-463.75395579,0.000339,120]
[419263866,1775075464110,-184.63982661,0.000339,120]
[419263867,1775075464120,-393.49142579,0.000339,120]
[419263868,1775075464129,-342.65510076,0.000339,120]
[419263869,1775075464139,-1957.82232135,0.000339,120]
[419263870,1775075464148,-647.06184253,0.000339,120]
[419263871,1775075464158,-281.59168138,0.000339,120]
[419263872,1775075464167,-1263.0,0.00033904,2]
[419263873,1775075464178,-1216.0,0.00033904,2]
[419263874,1775075464188,-925.0,0.00033904,2]
[419263875,1775075464198,-1444.0,0.00033973,120]
[419263876,1775075464208,-14179.92781205,0.00034,4]
[419263877,1775075464218,-3977.79,0.00034,7]
[419263878,1775075464228,-35822.84,0.00034,2]
[419263879,1775075464238,-1000.0,0.00034,120]
[419263880,1775075464248,-4004.752,0.00034,120]
[419263881,1775075464258,-1086.42,0.00034001,30]
[419263882,1775075464269,-5000.0,0.00034023,7]
[419263883,1775075464278,-81751.4296601,0.0003406,2]
[419263884,1775075464291,-1014.48,0.00034062,120]
[419263885,1775075464300,-433.72,0.00034212,120]
[419263886,1775075464310,-250.0,0.0003423,35]
[419263887,1775075464319,-500.0,0.00034247,120]
[419263888,1775075464329,-250.0,0.00034247,120]
[419263889,1775075464339,-500.0,0.00034247,60]
[419263890,1775075464349,-500.0,0.00034247,5]
[419263891,1775075464358,-1096.6,0.00034278,2]
[419263892,1775075464368,-432.0,0.00034345,30]
[419263893,1775075464379,-153.0,0.00034345,30]
[419263894,1775075464389,-985.0,0.00034345,30]
[419263895,1775075464399,-1327.0,0.00034345,30]
[419263896,1775075464409,-4030.0,0.00034345,30]
[419263897,1775075464420,-1211.0,0.00034345,30]
[419263898,1775075464429,-506.0,0.00034345,30]
[419263899,1775075464440,-1014.48,0.00034375,120]
[419263900,1775075464450,-288.83,0.00034429,60]
[419263901,1775075464460,-363.51560483,0.00034444,30]
[419263902,1775075464470,-363.51560483,0.00034444,30]
[419263903,1775075464479,-363.51560483,0.00034444,30]
[419263904,1775075464489,-1748.03076578,0.0003449,2]
[419263905,1775075464499,-433.0,0.0003449,10]
[419263906,1775075464508,-174.51902717,0.000345,120]
[419263907,1775075464519,-5000.0,0.000345,14]
[419263908,1775075464529,-250.0,0.00034521,5]
[419263909,1775075464540,-2809.0,0.00034534,11]
[419263910,1775075464550,-152.0,0.00034573,2]
[419263911,1775075464560,-1386.78395259,0.00034599,30]
[419263912,1775075464569,-152.0,0.00034603,6]
[419263913,1775075464579,-825.0,0.0003465,90]
[419263914,1775075464589,-1014.48,0.00034687,120]
[419263915,1775075464598,-150.0,0.00034696,2]
[419263916,1775075464607,-2195.25,0.00034712,30]
[419263917,1775075464616,-214.82,0.00034712,30]
[419263918,1775075464626,-1059.36,0.00034712,30]
[419263919,1775075464635,-853.07,0.00034712,30]
[419263920,1775075464644,-150.0,0.00034712,30]
[419263921,1775075464654,-250.0,0.00034713,37]
[419263922,1775075464663,-151.0,0.0003475,5]
[419263923,1775075464672,-1500.0,0.00034795,2]
[419263924,1775075464681,-500.0,0.00034869,120]
[419263925,1775075464690,-1962.89831621,0.0003488,120]
[419263926,1775075464700,-243.0,0.0003488,30]
[419263927,1775075464709,-657.52469675,0.000349,120]
[419263928,1775075464718,-1014.48,0.00035,120]
[419263929,1775075464728,-6485.49701259,0.00035,30]
[419263930,1775075464737,-544.03644772,0.00035,30]
[419263931,1775075464747,-3935.10702431,0.00035,30]
[419263932,1775075464756,-340000.0,0.00035,4]
[419263933,1775075464766,-1936.03153159,0.00035,2]
[419263934,1775075464776,-2292.55777083,0.00035,30]
[419263935,1775075464785,-501.30651736,0.00035,7]
[419263936,1775075464795,-150.0,0.00035,60]
[419263937,1775075464804,-463.75395579,0.00035,120]
[419263938,1775075464814,-184.63982661,0.00035,120]
[419263939,1775075464823,-393.49142579,0.00035,120]
[419263940,1775075464832,-342.65510076,0.00035,120]
[419263941,1775075464842,-1957.82232135,0.00035,120]
[419263942,1775075464851,-647.06184253,0.00035,120]
[419263943,1775075464860,-281.59168138,0.00035,120]
[419263944,1775075464869,-9127.68,0.00035,30]
[419263945,1775075464879,-7730.48,0.00035,30]
[419263946,1775075464888,-35822.84,0.00035,2]
[419263947,1775075464897,-963.31646,0.00035,30]
[419263948,1775075464906,-2175.0,0.00035,120]
[419263949,1775075464915,-300.0,0.00035,30]
[419263950,1775075464924,-250.0,0.00035,7]
[419263951,1775075464933,-150.0,0.00035,2]
[419263952,1775075464942,-163.931,0.00035,2]
[419263953,1775075464952,-220.02,0.00035,2]
[419263954,1775075465286,-12680.0672,0.00035,92]
[419263955,1775075465299,-200.0,0.00035,5]
[419263956,1775075465308,-584.10078651,0.00035,2]
[419263957,1775075465318,-803.32139066,0.00035,3]
[419263958,1775075465327,-4500.0,0.00035,2]
[419263959,1775075465336,-208.4,0.00035019,60]
[419263960,1775075465345,-190.0,0.00035068,60]
[419263961,1775075465354,-7126.81,0.000351,30]
[419263962,1775075465364,-1096.6,0.00035122,5]
[419263963,1775075465373,-250.0,0.00035178,120]
[419263964,1775075465383,-250.0,0.00035178,120]
[419263965,1775075465392,-366.3348096,0.00035178,120]
[419263966,1775075465402,-250.0,0.00035178,120]
[419263967,1775075465411,-500.0,0.00035178,120]
[419263968,1775075465420,-500.0,0.00035178,120]
[419263969,1775075465430,-500.0,0.00035178,120]
[419263970,1775075465439,-375.6646586,0.00035178,120]
[419263971,1775075465449,-500.0,0.00035178,120]
[419263972,1775075465460,-500.0,0.00035178,120]
[419263973,1775075465469,-500.0,0.00035178,120]
[419263974,1775075465479,-500.0,0.00035178,120]
[419263975,1775075465488,-500.0,0.00035178,120]
[419263976,1775075465497,-500.0,0.00035178,120]
[419263977,1775075465507,-797.1364458,0.00035178,120]
[419263978,1775075465516,-500.0,0.00035178,120]
[419263979,1775075465526,-500.0,0.00035178,120]
[419263980,1775075465535,-500.0,0.00035178,120]
[419263981,1775075465545,-500.0,0.00035178,120]
[419263982,1775075465555,-500.0,0.00035178,120]
[419263983,1775075465566,-303.6158653,0.00035178,120]
[419263984,1775075465577,-250.0,0.00035178,120]
[419263985,1775075465587,-793.8033377,0.00035178,120]
[419263986,1775075465597,-500.0,0.00035178,120]
[419263987,1775075465607,-500.0,0.00035178,120]
[419263988,1775075465618,-500.0,0.00035178,120]
[419263989,1775075465627,-500.0,0.00035178,120]
[419263990,1775075465637,-500.0,0.00035178,120]
[419263991,1775075465647,-500.0,0.00035178,120]
[419263992,1775075465657,-962.7119454,0.00035178,120]
[419263993,1775075465666,-500.0,0.00035178,120]
[419263994,1775075465675,-500.0,0.00035178,120]
[419263995,1775075465685,-500.0,0.00035178,120]
[419263996,1775075465694,-500.0,0.00035178,120]
[419263997,1775075465705,-500.0,0.00035178,120]
[419263998,1775075465715,-500.0,0.00035178,120]
[419263999,1775075465724,-500.0,0.00035178,120]
[419264000,1775075465736,-604.2768594,0.00035178,120]
[419264001,1775075465746,-507.643897,0.00035178,120]
[419264002,1775075465757,-500.0,0.00035178,120]
[419264003,1775075465767,-500.0,0.00035178,120]
[419264004,1775075465777,-500.0,0.00035178,120]
[419264005,1775075465786,-500.0,0.00035178,120]
[419264006,1775075465796,-250.0,0.00035178,120]
[419264007,1775075465806,-500.0,0.00035178,120]
[419264008,1775075465815,-500.0,0.00035178,120]
[419264009,1775075465824,-500.0,0.00035178,120]
[419264010,1775075465834,-250.0,0.00035178,120]
[419264011,1775075465843,-500.0,0.00035178,120]
[419264012,1775075465852,-500.0,0.00035178,120]
[419264013,1775075465861,-250.0,0.00035178,120]
[419264014,1775075465870,-500.0,0.00035178,120]
[419264015,1775075465880,-500.0,0.00035178,120]
[419264016,1775075465889,-500.0,0.00035178,120]
[419264017,1775075465898,-500.0,0.00035178,120]
[419264018,1775075465908,-500.0,0.00035178,120]
[419264019,1775075465917,-500.0,0.00035178,120]
[419264020,1775075465927,-500.0,0.00035178,120]
[419264021,1775075465936,-500.0,0.00035178,120]
[419264022,1775075465945,-500.0,0.00035178,120]
[419264023,1775075465955,-500.0,0.00035178,120]